[Event "Early-Titled-Tuesday-Blitz-February-20-2024"]
[Site "Chess.com"]
[Date "2024.02.20"]
[Round "6"]
[White "bescmelasti"]
[Black "ATM622"]
[Result "1-0"]
[WhiteElo "2646"]
[BlackElo "2493"]
[TimeControl "180+1"]
[EndTime "9:08:17 PST"]
[Termination "bescmelasti won on time"]

1. e4 {[%clk 0:03:00.3]} 1... c6 {[%clk 0:02:59.2]} 2. Nf3 {[%clk 0:03:00.2]}
2... d5 {[%clk 0:03:00.1]} 3. Nc3 {[%clk 0:02:59.2]} 3... dxe4 {[%clk
0:02:59.7]} 4. Nxe4 {[%clk 0:02:58.3]} 4... Bg4 {[%clk 0:02:58.7]} 5. Qe2 {[%clk
0:02:59.2]} 5... Bxf3 {[%clk 0:02:56.5]} 6. Qxf3 {[%clk 0:02:58.9]} 6... Nf6
{[%clk 0:02:56.7]} 7. Nxf6+ {[%clk 0:02:58.3]} 7... exf6 {[%clk 0:02:55.7]} 8.
c3 {[%clk 0:02:57]} 8... Bd6 {[%clk 0:02:51.7]} 9. Qe4+ {[%clk 0:02:55]} 9...
Qe7 {[%clk 0:02:50.6]} 10. Qxe7+ {[%clk 0:02:54.9]} 10... Bxe7 {[%clk
0:02:50.4]} 11. d4 {[%clk 0:02:50.9]} 11... O-O {[%clk 0:02:49.4]} 12. Bd3
{[%clk 0:02:49.3]} 12... Re8 {[%clk 0:02:43.3]} 13. O-O {[%clk 0:02:50.2]} 13...
Bd6 {[%clk 0:02:42.9]} 14. Bd2 {[%clk 0:02:44.9]} 14... Nd7 {[%clk 0:02:42]} 15.
Rae1 {[%clk 0:02:45.2]} 15... h6 {[%clk 0:02:38.3]} 16. Rxe8+ {[%clk 0:02:45.1]}
16... Rxe8 {[%clk 0:02:37.3]} 17. g3 {[%clk 0:02:46]} 17... Bf8 {[%clk
0:02:11.8]} 18. Re1 {[%clk 0:02:44.8]} 18... Rxe1+ {[%clk 0:02:08.9]} 19. Bxe1
{[%clk 0:02:45.7]} 19... g6 {[%clk 0:02:08.3]} 20. Bd2 {[%clk 0:02:34.3]} 20...
f5 {[%clk 0:02:07.7]} 21. Bf4 {[%clk 0:02:32.5]} 21... Nf6 {[%clk 0:02:02.2]}
22. Bb8 {[%clk 0:02:27.7]} 22... a6 {[%clk 0:01:58.9]} 23. Kf1 {[%clk
0:02:27.4]} 23... h5 {[%clk 0:01:44.1]} 24. Ke2 {[%clk 0:02:23.2]} 24... Bh6
{[%clk 0:01:40.5]} 25. a4 {[%clk 0:02:14.5]} 25... Bc1 {[%clk 0:01:37.4]} 26. b3
{[%clk 0:02:02.9]} 26... Bb2 {[%clk 0:00:57.7]} 27. Kd2 {[%clk 0:02:02.6]} 27...
Nd5 {[%clk 0:00:45.3]} 28. c4 {[%clk 0:02:02.8]} 28... Nb4 {[%clk 0:00:39.9]}
29. Ba7 {[%clk 0:02:00.8]} 29... Kg7 {[%clk 0:00:25.6]} 30. Bb1 {[%clk 0:01:56]}
30... Kf6 {[%clk 0:00:19.4]} 31. a5 {[%clk 0:01:55.2]} 31... c5 {[%clk
0:00:11.8]} 32. Bxc5 {[%clk 0:01:53.9]} 32... Nc6 {[%clk 0:00:11.5]} 33. d5
{[%clk 0:01:45.8]} 33... Nxa5 {[%clk 0:00:10.7]} 34. Ba2 {[%clk 0:01:41.2]}
34... b5 {[%clk 0:00:08.6]} 35. Bb6 {[%clk 0:01:18.1]} 35... Nb7 {[%clk
0:00:06.6]} 36. c5 {[%clk 0:01:18.6]} 36... Ke5 {[%clk 0:00:05.4]} 37. b4 {[%clk
0:01:16]} 37... Bd4 {[%clk 0:00:03.5]} 38. Bc7+ {[%clk 0:01:14.2]} 1-0

[Event "Early-Titled-Tuesday-Blitz-February-20-2024"]
[Site "Chess.com"]
[Date "2024.02.20"]
[Round "6"]
[White "BogdanDeac"]
[Black "Eagle_2019"]
[Result "1-0"]
[WhiteElo "3051"]
[BlackElo "2883"]
[TimeControl "180+1"]
[EndTime "9:08:18 PST"]
[Termination "BogdanDeac won by resignation"]

1. d4 {[%clk 0:03:00.9]} 1... d5 {[%clk 0:03:00]} 2. Nf3 {[%clk 0:03:00.6]} 2...
Nf6 {[%clk 0:02:59.3]} 3. Bf4 {[%clk 0:03:01.2]} 3... e6 {[%clk 0:02:58.2]} 4.
e3 {[%clk 0:03:00]} 4... c5 {[%clk 0:02:58.1]} 5. Nbd2 {[%clk 0:02:59.8]} 5...
Nc6 {[%clk 0:02:57.8]} 6. c3 {[%clk 0:02:59.9]} 6... cxd4 {[%clk 0:02:58.1]} 7.
exd4 {[%clk 0:03:00]} 7... Nh5 {[%clk 0:02:58.2]} 8. Be3 {[%clk 0:03:00.3]} 8...
Bd6 {[%clk 0:02:57.1]} 9. Ne5 {[%clk 0:03:00.8]} 9... Nf6 {[%clk 0:02:56.6]} 10.
Ndf3 {[%clk 0:03:00]} 10... O-O {[%clk 0:02:54.2]} 11. Bd3 {[%clk 0:02:58.9]}
11... Qc7 {[%clk 0:02:51.9]} 12. O-O {[%clk 0:02:58.3]} 12... Nxe5 {[%clk
0:02:47.4]} 13. dxe5 {[%clk 0:02:56.3]} 13... Bxe5 {[%clk 0:02:47.3]} 14. Nxe5
{[%clk 0:02:56.9]} 14... Qxe5 {[%clk 0:02:48.2]} 15. Bd4 {[%clk 0:02:57.5]}
15... Qg5 {[%clk 0:02:38.3]} 16. f4 {[%clk 0:02:49.2]} 16... Qh6 {[%clk
0:02:35.6]} 17. Rf3 {[%clk 0:02:14.4]} 17... e5 {[%clk 0:02:24.2]} 18. fxe5
{[%clk 0:01:59.7]} 18... Ne4 {[%clk 0:02:23.3]} 19. Qe1 {[%clk 0:01:28.3]} 19...
Bg4 {[%clk 0:02:14.5]} 20. Re3 {[%clk 0:01:26.9]} 20... Rfe8 {[%clk 0:01:54.7]}
21. c4 {[%clk 0:01:17.5]} 21... Rad8 {[%clk 0:01:31.3]} 22. cxd5 {[%clk
0:01:15.1]} 22... Ng5 {[%clk 0:01:31.2]} 23. Qg3 {[%clk 0:00:38.8]} 23... Bh5
{[%clk 0:01:16]} 24. d6 {[%clk 0:00:35.4]} 24... Ne6 {[%clk 0:01:13]} 25. Bxa7
{[%clk 0:00:31.8]} 25... Nf4 {[%clk 0:01:10]} 26. Bb5 {[%clk 0:00:15.9]} 26...
Re6 {[%clk 0:01:06.7]} 27. Bb6 {[%clk 0:00:15.7]} 27... Rf8 {[%clk 0:01:00.4]}
28. Rf1 {[%clk 0:00:13.2]} 28... Nxg2 {[%clk 0:00:59.4]} 29. Qxg2 {[%clk
0:00:13]} 29... f5 {[%clk 0:00:46.4]} 30. Bc4 {[%clk 0:00:09.7]} 30... Bf7
{[%clk 0:00:46]} 31. Bxe6 {[%clk 0:00:07.3]} 31... Bxe6 {[%clk 0:00:46.9]} 32.
Rh3 {[%clk 0:00:05.7]} 1-0

[Event "Early-Titled-Tuesday-Blitz-February-20-2024"]
[Site "Chess.com"]
[Date "2024.02.20"]
[Round "6"]
[White "Vaathi_Coming"]
[Black "Maxfan2008"]
[Result "1-0"]
[WhiteElo "2901"]
[BlackElo "2565"]
[TimeControl "180+1"]
[EndTime "9:08:18 PST"]
[Termination "Vaathi_Coming won on time"]

1. Nf3 {[%clk 0:03:00.9]} 1... d5 {[%clk 0:02:59.4]} 2. g3 {[%clk 0:03:00.7]}
2... Bg4 {[%clk 0:02:59.5]} 3. Bg2 {[%clk 0:03:01]} 3... Nd7 {[%clk 0:02:59.3]}
4. d4 {[%clk 0:03:00.6]} 4... Ngf6 {[%clk 0:02:57.9]} 5. O-O {[%clk 0:03:00.7]}
5... e6 {[%clk 0:02:58]} 6. c4 {[%clk 0:02:59]} 6... c6 {[%clk 0:02:55.5]} 7. b3
{[%clk 0:02:58.4]} 7... Bd6 {[%clk 0:02:52.9]} 8. Bb2 {[%clk 0:02:59]} 8... O-O
{[%clk 0:02:52.1]} 9. Nbd2 {[%clk 0:02:59.7]} 9... h6 {[%clk 0:02:45.1]} 10. Ne5
{[%clk 0:02:59.3]} 10... Bf5 {[%clk 0:02:37.4]} 11. h3 {[%clk 0:02:50.1]} 11...
Bh7 {[%clk 0:02:31.1]} 12. f4 {[%clk 0:02:48.9]} 12... a5 {[%clk 0:02:18.7]} 13.
a3 {[%clk 0:02:40.7]} 13... c5 {[%clk 0:01:33.9]} 14. e3 {[%clk 0:02:35.6]}
14... Qc7 {[%clk 0:01:26]} 15. Kh2 {[%clk 0:02:33.7]} 15... Rac8 {[%clk
0:01:18.2]} 16. Rc1 {[%clk 0:02:01.9]} 16... b6 {[%clk 0:01:10.2]} 17. b4 {[%clk
0:01:34.2]} 17... axb4 {[%clk 0:01:07.5]} 18. axb4 {[%clk 0:01:32.6]} 18... Ne4
{[%clk 0:00:33.6]} 19. Nxe4 {[%clk 0:01:09.4]} 19... Bxe4 {[%clk 0:00:30.4]} 20.
Bxe4 {[%clk 0:01:05]} 20... dxe4 {[%clk 0:00:31.3]} 21. Nxd7 {[%clk 0:01:00.2]}
21... Qxd7 {[%clk 0:00:30.4]} 22. dxc5 {[%clk 0:00:59.6]} 22... bxc5 {[%clk
0:00:28.5]} 23. bxc5 {[%clk 0:01:00.5]} 23... Rxc5 {[%clk 0:00:19.3]} 24. Qd4
{[%clk 0:00:59.7]} 24... e5 {[%clk 0:00:07]} 25. fxe5 {[%clk 0:00:56.8]} 25...
Rxe5 {[%clk 0:00:07.1]} 26. c5 {[%clk 0:00:47.3]} 26... f6 {[%clk 0:00:03.7]}
27. Qxd6 {[%clk 0:00:40.7]} 27... Qa4 {[%clk 0:00:02.9]} 28. Bxe5 {[%clk
0:00:39.5]} 1-0

[Event "Early-Titled-Tuesday-Blitz-February-20-2024"]
[Site "Chess.com"]
[Date "2024.02.20"]
[Round "6"]
[White "wanyaland"]
[Black "only_strong_moves"]
[Result "0-1"]
[WhiteElo "2495"]
[BlackElo "2651"]
[TimeControl "180+1"]
[EndTime "9:08:22 PST"]
[Termination "only_strong_moves won by resignation"]

1. d4 {[%clk 0:02:59.7]} 1... Nf6 {[%clk 0:02:59.8]} 2. c4 {[%clk 0:02:59.5]}
2... e6 {[%clk 0:03:00.3]} 3. g3 {[%clk 0:02:59.8]} 3... d5 {[%clk 0:03:00.9]}
4. Bg2 {[%clk 0:03:00]} 4... Be7 {[%clk 0:03:01.6]} 5. Nf3 {[%clk 0:03:00.2]}
5... O-O {[%clk 0:03:02.3]} 6. O-O {[%clk 0:03:00.5]} 6... dxc4 {[%clk
0:03:03.2]} 7. Qc2 {[%clk 0:02:59.6]} 7... a6 {[%clk 0:03:03.7]} 8. a4 {[%clk
0:02:58.9]} 8... Bd7 {[%clk 0:03:04]} 9. Bg5 {[%clk 0:02:56.1]} 9... Bc6 {[%clk
0:03:04.1]} 10. Qxc4 {[%clk 0:02:54.9]} 10... Nbd7 {[%clk 0:02:55.2]} 11. a5
{[%clk 0:02:54]} 11... h6 {[%clk 0:02:49.5]} 12. Bxf6 {[%clk 0:02:52]} 12...
Nxf6 {[%clk 0:02:50.4]} 13. Nc3 {[%clk 0:02:51.3]} 13... Bd5 {[%clk 0:02:48.5]}
14. Nxd5 {[%clk 0:02:47.3]} 14... exd5 {[%clk 0:02:47.6]} 15. Qb3 {[%clk
0:02:47.1]} 15... Rb8 {[%clk 0:02:43.6]} 16. e3 {[%clk 0:02:44.4]} 16... c6
{[%clk 0:02:43.1]} 17. Ne5 {[%clk 0:02:42.6]} 17... Ne8 {[%clk 0:02:36.5]} 18.
Bh3 {[%clk 0:02:41.1]} 18... Nf6 {[%clk 0:02:34.5]} 19. Qc2 {[%clk 0:02:39.8]}
19... Qd6 {[%clk 0:02:29.2]} 20. Rab1 {[%clk 0:02:32.7]} 20... Rfe8 {[%clk
0:02:26]} 21. b4 {[%clk 0:02:31]} 21... Bf8 {[%clk 0:02:18.7]} 22. f4 {[%clk
0:02:29]} 22... Ne4 {[%clk 0:02:17.1]} 23. Bf5 {[%clk 0:02:27.3]} 23... f6
{[%clk 0:02:07.5]} 24. Bxe4 {[%clk 0:02:15.8]} 24... dxe4 {[%clk 0:02:08.4]} 25.
Nc4 {[%clk 0:01:56.7]} 25... Qe6 {[%clk 0:02:08.6]} 26. Nb6 {[%clk 0:01:54.8]}
26... Kh7 {[%clk 0:02:08.8]} 27. f5 {[%clk 0:01:52.8]} 27... Qf7 {[%clk
0:02:06.6]} 28. Rf4 {[%clk 0:01:52.7]} 28... Bd6 {[%clk 0:01:53.2]} 29. Rxe4
{[%clk 0:01:49.7]} 29... Rxe4 {[%clk 0:01:54.1]} 30. Qxe4 {[%clk 0:01:48.8]}
30... Re8 {[%clk 0:01:55]} 31. Qf3 {[%clk 0:01:49.1]} 31... Qa2 {[%clk
0:01:55.5]} 32. Rf1 {[%clk 0:01:35.4]} 32... Qd2 {[%clk 0:01:52.7]} 33. Nc4
{[%clk 0:01:28.3]} 33... Qxb4 {[%clk 0:01:51]} 34. Nxd6 {[%clk 0:01:27.6]} 34...
Qxd6 {[%clk 0:01:51.9]} 35. Re1 {[%clk 0:01:23.7]} 35... Qb4 {[%clk 0:01:51]}
36. Re2 {[%clk 0:01:23.2]} 36... Qxa5 {[%clk 0:01:49.8]} 37. Qg4 {[%clk
0:01:23.5]} 37... Re7 {[%clk 0:01:47.9]} 38. Kg2 {[%clk 0:01:21.4]} 38... Qd5+
{[%clk 0:01:46.4]} 39. Kh3 {[%clk 0:01:19.4]} 39... a5 {[%clk 0:01:44.8]} 40.
Rb2 {[%clk 0:01:16.2]} 40... b5 {[%clk 0:01:44.4]} 41. Qf4 {[%clk 0:01:14.3]}
41... a4 {[%clk 0:01:42.9]} 42. Rc2 {[%clk 0:01:13.6]} 42... a3 {[%clk
0:01:42.4]} 43. Rc5 {[%clk 0:01:08.1]} 43... Re4 {[%clk 0:01:30.1]} 44. Qc7
{[%clk 0:00:59.6]} 44... Qxc5 {[%clk 0:00:52.1]} 45. dxc5 {[%clk 0:00:58.2]}
45... a2 {[%clk 0:00:52.8]} 46. Qa7 {[%clk 0:00:52.3]} 46... Ra4 {[%clk
0:00:52.7]} 47. Qf7 {[%clk 0:00:51.5]} 47... Ra8 {[%clk 0:00:53.3]} 0-1

[Event "Early-Titled-Tuesday-Blitz-February-20-2024"]
[Site "Chess.com"]
[Date "2024.02.20"]
[Round "6"]
[White "ajeale2"]
[Black "ShieldingOff"]
[Result "1-0"]
[WhiteElo "2500"]
[BlackElo "2209"]
[TimeControl "180+1"]
[EndTime "9:08:23 PST"]
[Termination "ajeale2 won by resignation"]

1. d4 {[%clk 0:03:00.9]} 1... c5 {[%clk 0:02:56.2]} 2. d5 {[%clk 0:02:59]} 2...
e5 {[%clk 0:02:55.8]} 3. c4 {[%clk 0:02:58.6]} 3... d6 {[%clk 0:02:55.9]} 4. Nc3
{[%clk 0:02:59.2]} 4... Be7 {[%clk 0:02:56.3]} 5. Nf3 {[%clk 0:02:58.6]} 5... a6
{[%clk 0:02:55.2]} 6. e4 {[%clk 0:02:58.5]} 6... Bg4 {[%clk 0:02:54.8]} 7. a4
{[%clk 0:02:55.7]} 7... Bxf3 {[%clk 0:02:53.6]} 8. Qxf3 {[%clk 0:02:51.3]} 8...
Bg5 {[%clk 0:02:53.6]} 9. Bd3 {[%clk 0:02:12.2]} 9... Bxc1 {[%clk 0:02:51.7]}
10. Rxc1 {[%clk 0:02:12.5]} 10... Ne7 {[%clk 0:02:50.3]} 11. h4 {[%clk
0:02:10.5]} 11... O-O {[%clk 0:02:43.7]} 12. h5 {[%clk 0:02:10.7]} 12... h6
{[%clk 0:02:43.8]} 13. g4 {[%clk 0:02:10.9]} 13... f6 {[%clk 0:02:30.3]} 14. O-O
{[%clk 0:01:41.9]} 14... Nd7 {[%clk 0:01:51.6]} 15. Ne2 {[%clk 0:01:41.5]} 15...
Qe8 {[%clk 0:01:46]} 16. Ng3 {[%clk 0:01:40.6]} 16... g6 {[%clk 0:01:41.8]} 17.
hxg6 {[%clk 0:01:21.4]} 17... Qxg6 {[%clk 0:01:35.9]} 18. Kg2 {[%clk 0:01:21.1]}
18... Kf7 {[%clk 0:01:32.2]} 19. Rh1 {[%clk 0:01:08.9]} 19... Rh8 {[%clk
0:01:27.1]} 20. Rh4 {[%clk 0:01:00.8]} 20... Rag8 {[%clk 0:01:26.6]} 21. Rch1
{[%clk 0:01:00.4]} 21... Ke8 {[%clk 0:01:20.3]} 22. Be2 {[%clk 0:00:54.3]} 22...
Rg7 {[%clk 0:01:17.3]} 23. Qb3 {[%clk 0:00:50.4]} 23... b6 {[%clk 0:01:16.3]}
24. a5 {[%clk 0:00:51.1]} 24... bxa5 {[%clk 0:01:09]} 25. Qb7 {[%clk 0:00:51.2]}
25... Qg5 {[%clk 0:00:44.5]} 26. Qa8+ {[%clk 0:00:42.5]} 26... Kf7 {[%clk
0:00:28.9]} 27. Qxh8 {[%clk 0:00:41.9]} 27... Ng6 {[%clk 0:00:24.2]} 28. Qxh6
{[%clk 0:00:34.1]} 28... Nxh4+ {[%clk 0:00:17.9]} 29. Rxh4 {[%clk 0:00:33.5]}
1-0

[Event "Early-Titled-Tuesday-Blitz-February-20-2024"]
[Site "Chess.com"]
[Date "2024.02.20"]
[Round "6"]
[White "Zq1"]
[Black "Ariadna_Atreides"]
[Result "1-0"]
[WhiteElo "2525"]
[BlackElo "2192"]
[TimeControl "180+1"]
[EndTime "9:08:25 PST"]
[Termination "Zq1 won on time"]

1. d4 {[%clk 0:03:00.9]} 1... Nf6 {[%clk 0:02:58.1]} 2. c4 {[%clk 0:03:00.8]}
2... e6 {[%clk 0:02:58.7]} 3. Nf3 {[%clk 0:03:00.2]} 3... Bb4+ {[%clk
0:02:58.9]} 4. Bd2 {[%clk 0:02:59.5]} 4... Bxd2+ {[%clk 0:02:58.8]} 5. Qxd2
{[%clk 0:02:59.2]} 5... O-O {[%clk 0:02:57.6]} 6. Nc3 {[%clk 0:02:59.1]} 6... d5
{[%clk 0:02:58.2]} 7. e3 {[%clk 0:02:56.7]} 7... Qe7 {[%clk 0:02:57.8]} 8. Rc1
{[%clk 0:02:53.7]} 8... Rd8 {[%clk 0:02:57.6]} 9. cxd5 {[%clk 0:02:52]} 9...
exd5 {[%clk 0:02:56.7]} 10. Be2 {[%clk 0:02:46.3]} 10... Nc6 {[%clk 0:02:47.8]}
11. O-O {[%clk 0:02:41.9]} 11... Bg4 {[%clk 0:02:45.4]} 12. h3 {[%clk
0:02:40.4]} 12... Bh5 {[%clk 0:02:31.3]} 13. a3 {[%clk 0:02:31.6]} 13... Ne4
{[%clk 0:02:23.7]} 14. Nxe4 {[%clk 0:02:25.2]} 14... dxe4 {[%clk 0:02:23.6]} 15.
Ne5 {[%clk 0:02:16.9]} 15... Qxe5 {[%clk 0:01:55.4]} 16. dxe5 {[%clk 0:02:13.7]}
16... Rxd2 {[%clk 0:01:53.8]} 17. Bxh5 {[%clk 0:02:13.5]} 17... Rxb2 {[%clk
0:01:49.9]} 18. e6 {[%clk 0:02:10.6]} 18... g6 {[%clk 0:01:43.3]} 19. exf7+
{[%clk 0:02:06.5]} 19... Kxf7 {[%clk 0:01:44.2]} 20. Bg4 {[%clk 0:02:06.3]}
20... Rd8 {[%clk 0:01:34.1]} 21. Rc4 {[%clk 0:02:02.7]} 21... h5 {[%clk
0:01:19.5]} 22. Bd1 {[%clk 0:01:59.6]} 22... Ra2 {[%clk 0:00:52.3]} 23. a4
{[%clk 0:01:58.6]} 23... Ra1 {[%clk 0:00:38.7]} 24. Bc2 {[%clk 0:01:53.4]} 24...
Rxf1+ {[%clk 0:00:15.6]} 25. Kxf1 {[%clk 0:01:52.2]} 25... Ne5 {[%clk
0:00:08.5]} 26. Rxc7+ {[%clk 0:01:50.7]} 26... Rd7 {[%clk 0:00:07.5]} 27. Rxd7+
{[%clk 0:01:48.2]} 27... Nxd7 {[%clk 0:00:08.4]} 28. Bxe4 {[%clk 0:01:47.5]}
28... Nc5 {[%clk 0:00:09]} 29. Bc2 {[%clk 0:01:47.4]} 29... g5 {[%clk
0:00:08.3]} 30. Ke2 {[%clk 0:01:37.5]} 30... b6 {[%clk 0:00:07.9]} 31. Kd2
{[%clk 0:01:31.4]} 31... Kf6 {[%clk 0:00:08.1]} 32. Kc3 {[%clk 0:01:28]} 32...
Ke5 {[%clk 0:00:07.9]} 33. Kc4 {[%clk 0:01:27.8]} 33... h4 {[%clk 0:00:02.6]}
34. f3 {[%clk 0:01:19.7]} 34... Kd6 {[%clk 0:00:02.7]} 35. Kd4 {[%clk
0:01:15.5]} 35... Ne6+ {[%clk 0:00:02.4]} 36. Ke4 {[%clk 0:01:14.7]} 36... Ng7
{[%clk 0:00:02.1]} 37. f4 {[%clk 0:01:10.8]} 37... gxf4 {[%clk 0:00:01.5]} 38.
Kxf4 {[%clk 0:01:09.4]} 38... Ke6 {[%clk 0:00:02.4]} 39. Kg5 {[%clk 0:01:08.4]}
39... Ne8 {[%clk 0:00:01]} 40. Kxh4 {[%clk 0:01:07.3]} 40... Nd6 {[%clk
0:00:01.9]} 41. Kg5 {[%clk 0:01:04.6]} 41... Nc4 {[%clk 0:00:02.4]} 42. Bb3
{[%clk 0:01:04.1]} 42... Kd5 {[%clk 0:00:01.2]} 43. h4 {[%clk 0:01:01.1]} 43...
Kc5 {[%clk 0:00:01.3]} 44. Bxc4 {[%clk 0:01:00.4]} 44... Kxc4 {[%clk 0:00:02.2]}
45. h5 {[%clk 0:01:00.2]} 1-0

[Event "Early-Titled-Tuesday-Blitz-February-20-2024"]
[Site "Chess.com"]
[Date "2024.02.20"]
[Round "6"]
[White "alexrustemov"]
[Black "AlexTruskavetsky"]
[Result "0-1"]
[WhiteElo "2892"]
[BlackElo "2731"]
[TimeControl "180+1"]
[EndTime "9:08:27 PST"]
[Termination "AlexTruskavetsky won by checkmate"]

1. d4 {[%clk 0:03:00.9]} 1... Nf6 {[%clk 0:02:59.8]} 2. c4 {[%clk 0:03:01.3]}
2... e6 {[%clk 0:03:00.2]} 3. Nf3 {[%clk 0:03:01.6]} 3... d5 {[%clk 0:03:00.5]}
4. Nc3 {[%clk 0:03:01.5]} 4... dxc4 {[%clk 0:03:00.1]} 5. e4 {[%clk 0:03:00.9]}
5... Bb4 {[%clk 0:03:00.2]} 6. Bg5 {[%clk 0:02:59.6]} 6... h6 {[%clk 0:02:59.4]}
7. Bxf6 {[%clk 0:02:59.4]} 7... Qxf6 {[%clk 0:03:00.3]} 8. Bxc4 {[%clk
0:02:59.5]} 8... O-O {[%clk 0:03:00.2]} 9. O-O {[%clk 0:02:58.4]} 9... a6 {[%clk
0:03:00.5]} 10. e5 {[%clk 0:02:54.2]} 10... Qd8 {[%clk 0:03:00.2]} 11. Qe2
{[%clk 0:02:52.1]} 11... b5 {[%clk 0:02:59.9]} 12. Bd3 {[%clk 0:02:49.2]} 12...
Bb7 {[%clk 0:03:00.3]} 13. Be4 {[%clk 0:02:30.9]} 13... Bxe4 {[%clk 0:02:58.4]}
14. Qxe4 {[%clk 0:02:30]} 14... Nd7 {[%clk 0:02:58.2]} 15. a4 {[%clk 0:02:15.1]}
15... Bxc3 {[%clk 0:02:57.4]} 16. bxc3 {[%clk 0:02:14.6]} 16... Nb6 {[%clk
0:02:57.8]} 17. axb5 {[%clk 0:02:10.8]} 17... axb5 {[%clk 0:02:58.7]} 18. Qc6
{[%clk 0:01:55.6]} 18... Nd5 {[%clk 0:02:42.1]} 19. Qxb5 {[%clk 0:01:46.2]}
19... Nxc3 {[%clk 0:02:41.1]} 20. Qc4 {[%clk 0:01:45]} 20... Nd5 {[%clk
0:02:39.7]} 21. g3 {[%clk 0:01:43.3]} 21... Qd7 {[%clk 0:02:32.8]} 22. Kg2
{[%clk 0:01:42.3]} 22... Rab8 {[%clk 0:02:18.4]} 23. Rfb1 {[%clk 0:01:39.5]}
23... Rb6 {[%clk 0:02:14.3]} 24. Rc1 {[%clk 0:01:32.8]} 24... Rfb8 {[%clk
0:02:06.2]} 25. Rc2 {[%clk 0:01:32.1]} 25... Rb4 {[%clk 0:01:58.5]} 26. Qc6
{[%clk 0:01:28.9]} 26... Qd8 {[%clk 0:01:57.6]} 27. Rac1 {[%clk 0:01:26.6]}
27... Rb3 {[%clk 0:01:55.2]} 28. Qc4 {[%clk 0:01:23.4]} 28... R8b4 {[%clk
0:01:53.6]} 29. Qe2 {[%clk 0:01:22.5]} 29... Qa8 {[%clk 0:01:47.7]} 30. h4
{[%clk 0:01:15.4]} 30... Rxf3 {[%clk 0:01:37.9]} 31. Qxf3 {[%clk 0:01:07.2]}
31... Rb3 {[%clk 0:01:36.9]} 32. Rxc7 {[%clk 0:00:57.6]} 32... Nf4+ {[%clk
0:01:36.1]} 33. gxf4 {[%clk 0:00:07.6]} 33... Qxf3+ {[%clk 0:01:37]} 34. Kg1
{[%clk 0:00:07.2]} 34... Qxf4 {[%clk 0:01:35.3]} 35. R1c3 {[%clk 0:00:04.8]}
35... Rxc3 {[%clk 0:01:33.3]} 36. Rxc3 {[%clk 0:00:04.1]} 36... Qxd4 {[%clk
0:01:34]} 37. Re3 {[%clk 0:00:03.5]} 37... Qxh4 {[%clk 0:01:34.2]} 38. Kg2
{[%clk 0:00:03.2]} 38... Qg5+ {[%clk 0:01:34.3]} 39. Kf1 {[%clk 0:00:01.5]}
39... Qxe3 {[%clk 0:01:31.9]} 40. fxe3 {[%clk 0:00:01.5]} 40... Kh7 {[%clk
0:01:32.6]} 41. Kg2 {[%clk 0:00:01.6]} 41... Kg6 {[%clk 0:01:33.2]} 42. e4
{[%clk 0:00:02.5]} 42... Kg5 {[%clk 0:01:33.6]} 43. Kg3 {[%clk 0:00:02.9]} 43...
h5 {[%clk 0:01:34.2]} 44. Kf3 {[%clk 0:00:02.9]} 44... Kh4 {[%clk 0:01:33.9]}
45. Kf4 {[%clk 0:00:02.7]} 45... g5+ {[%clk 0:01:34.4]} 46. Kf3 {[%clk
0:00:02.8]} 46... Kh3 {[%clk 0:01:35]} 47. Kf2 {[%clk 0:00:03.1]} 47... Kg4
{[%clk 0:01:35.5]} 48. Ke3 {[%clk 0:00:03]} 48... Kg3 {[%clk 0:01:35.7]} 49. Kd4
{[%clk 0:00:02.8]} 49... Kf4 {[%clk 0:01:36.1]} 50. Kd3 {[%clk 0:00:02.4]} 50...
Kxe5 {[%clk 0:01:36.6]} 51. Ke3 {[%clk 0:00:03.3]} 51... g4 {[%clk 0:01:37.1]}
52. Kd3 {[%clk 0:00:03.4]} 52... f5 {[%clk 0:01:37.1]} 53. Ke3 {[%clk
0:00:04.3]} 53... f4+ {[%clk 0:01:37.5]} 54. Kf2 {[%clk 0:00:04.5]} 54... Kxe4
{[%clk 0:01:37.7]} 55. Kg2 {[%clk 0:00:04.8]} 55... Kd3 {[%clk 0:01:38.2]} 56.
Kh2 {[%clk 0:00:05]} 56... e5 {[%clk 0:01:38.8]} 57. Kg2 {[%clk 0:00:05.5]}
57... e4 {[%clk 0:01:39.4]} 58. Kf2 {[%clk 0:00:06]} 58... h4 {[%clk 0:01:40]}
59. Ke1 {[%clk 0:00:06.1]} 59... e3 {[%clk 0:01:40.7]} 60. Kf1 {[%clk
0:00:06.9]} 60... f3 {[%clk 0:01:41.3]} 61. Kg1 {[%clk 0:00:07.1]} 61... g3
{[%clk 0:01:42]} 62. Kh1 {[%clk 0:00:07.3]} 62... e2 {[%clk 0:01:42.5]} 63. Kg1
{[%clk 0:00:07.2]} 63... e1=Q# {[%clk 0:01:43.1]} 0-1